lending/lending_fUSD_20240816
["ID","MTS","AMOUNT","RATE_DAILY","PERIOD"]
[335051222,1723792254667,-1733.27,0.00023777,7]
[335051223,1723792254677,-1733.27,0.00023777,7]
[335051224,1723792254687,-500.0,0.00023777,7]
[335051225,1723792254697,-500.0,0.00023777,7]
[335051226,1723792254706,-3913.49,0.00023777,7]
[335051227,1723792254716,-3913.49,0.00023777,7]
[335051228,1723792254725,-5901.24,0.00023777,7]
[335051229,1723792254734,-5901.24,0.00023777,7]
[335051230,1723792254743,-4945.29,0.00023777,7]
[335051231,1723792254754,-4945.29,0.00023777,7]
[335051232,1723792254764,-1227.67,0.00023777,7]
[335051233,1723792254773,-1227.67,0.00023777,7]
[335051234,1723792254782,-21245.41,0.00023777,7]
[335051235,1723792254792,-21245.41,0.00023777,7]
[335051236,1723792254801,-6031.18,0.00023777,7]
[335051237,1723792254810,-6031.18,0.00023777,7]
[335051238,1723792254820,-500.0,0.00023777,7]
[335051239,1723792254829,-500.0,0.00023777,7]
[335051240,1723792254839,-6621.57,0.00023777,7]
[335051241,1723792254848,-6621.57,0.00023777,7]
[335051242,1723792254857,-1169.89,0.00023777,7]
[335051243,1723792254867,-8098.6,0.00023777,7]
[335051244,1723792254876,-1169.89,0.00023777,7]
[335051245,1723792254886,-8098.6,0.00023777,7]
[335051246,1723792254895,-1819.6,0.00023777,7]
[335051247,1723792254905,-1819.6,0.00023777,7]
[335051248,1723792254915,-853.85,0.00023777,7]
[335051249,1723792254924,-853.85,0.00023777,7]
[335051250,1723792254933,-978.24,0.00023777,7]
[335051251,1723792254943,-978.24,0.00023777,7]
[335051252,1723792254953,-2975.69,0.00023777,7]
[335051253,1723792254966,-2975.69,0.00023777,7]
[335051254,1723792254976,-545.65,0.00023777,7]
[335051255,1723792254985,-500.0,0.00023777,7]
[335051256,1723792254995,-545.65,0.00023777,7]
[335051257,1723792255005,-500.0,0.00023777,7]
[335051258,1723792255014,-4705.67,0.00023777,7]
[335051259,1723792255024,-4705.67,0.00023777,7]
[335051260,1723792255034,-500.0,0.00023777,7]
[335051261,1723792255043,-500.0,0.00023777,7]
[335051262,1723792255052,-673.75,0.00023777,7]
[335051263,1723792255062,-673.75,0.00023777,7]
[335051264,1723792255071,-3646.92,0.00023777,7]
[335051265,1723792255081,-3646.92,0.00023777,7]
[335051266,1723792255091,-545.81,0.00023777,7]
[335051267,1723792255101,-545.81,0.00023777,7]
[335051268,1723792255110,-500.0,0.00023777,7]
[335051269,1723792255120,-500.0,0.00023777,7]
[335051270,1723792255129,-923.6,0.00023777,7]
[335051271,1723792255139,-923.6,0.00023777,7]
[335051272,1723792255149,-3132.89,0.00023777,7]
[335051273,1723792255159,-3132.89,0.00023777,7]
[335051274,1723792255168,-402.43,0.00023777,7]
[335051275,1723792255178,-1897.98,0.00023777,7]
[335051276,1723792255188,-1897.98,0.00023777,7]
[335051277,1723792255198,-500.0,0.00023777,7]
[335051278,1723792255208,-500.0,0.00023777,7]
[335051279,1723792255217,-500.0,0.00023777,7]
[335051280,1723792255227,-500.0,0.00023777,7]
[335051281,1723792255241,-500.0,0.00023777,7]
[335051282,1723792255251,-500.0,0.00023777,7]
[335051283,1723792255261,-1545.78,0.00023777,7]
[335051284,1723792255271,-1545.78,0.00023777,7]
[335051285,1723792255281,-3733.82,0.00023777,7]
[335051286,1723792255291,-3733.82,0.00023777,7]
[335051287,1723792255301,-4993.21,0.00023777,7]
[335051288,1723792255311,-4993.21,0.00023777,7]
[335051289,1723792255321,-1819.02,0.00023777,7]
[335051290,1723792255330,-1819.02,0.00023777,7]
[335051291,1723792255340,-743.37,0.00023777,7]
[335051292,1723792255349,-743.37,0.00023777,7]
[335051293,1723792255359,-7946.22,0.00023777,7]
[335051294,1723792255368,-7946.22,0.00023777,7]
[335051295,1723792255378,-5348.87,0.00023777,7]
[335051296,1723792255388,-5348.87,0.00023777,7]
[335051297,1723792255397,-5615.4,0.00023777,7]
[335051298,1723792255407,-5615.4,0.00023777,7]
[335051299,1723792255416,-1666.42,0.00023777,7]
[335051300,1723792255425,-1666.42,0.00023777,7]
[335051301,1723792255435,-2975.69,0.00023777,7]
[335051302,1723792255444,-2975.69,0.00023777,7]
[335051303,1723792255453,-500.0,0.00023777,7]
[335051304,1723792255464,-500.0,0.00023777,7]
[335051305,1723792255474,-1859.09,0.00023777,7]
[335051306,1723792255483,-1859.09,0.00023777,7]
[335051307,1723792255492,-2520.87,0.00023777,7]
[335051308,1723792255503,-2520.87,0.00023777,7]
[335051309,1723792255512,-5546.86,0.00023777,7]
[335051310,1723792255522,-5546.86,0.00023777,7]
[335051311,1723792255531,-500.0,0.00023777,7]
[335051312,1723792255541,-500.0,0.00023777,7]
[335051313,1723792255550,-500.0,0.00023777,7]
[335051314,1723792255560,-500.0,0.00023777,7]
[335051315,1723792255569,-500.0,0.00023777,7]
[335051316,1723792255579,-500.0,0.00023777,7]
[335051317,1723792255588,-500.0,0.00023777,7]
[335051318,1723792255598,-500.0,0.00023777,7]
[335051319,1723792255607,-500.0,0.00023777,7]
[335051320,1723792255616,-500.0,0.00023777,7]
[335051321,1723792255625,-939.41,0.00023777,7]
[335051322,1723792255635,-939.41,0.00023777,7]
[335051323,1723792255644,-939.41,0.00023777,7]
[335051324,1723792255653,-524.13,0.00023777,7]
[335051325,1723792255662,-524.13,0.00023777,7]
[335051326,1723792255672,-524.13,0.00023777,7]
[335051327,1723792255681,-500.0,0.00023777,7]
[335051328,1723792255691,-500.0,0.00023777,7]
[335051329,1723792255701,-500.0,0.00023777,7]
[335051330,1723792255711,-531.7,0.00023777,7]
[335051331,1723792255720,-531.7,0.00023777,7]
[335051332,1723792255729,-531.7,0.00023777,7]
[335051333,1723792255738,-1418.67,0.00023777,7]
[335051334,1723792255748,-1418.67,0.00023777,7]
[335051335,1723792255758,-1418.67,0.00023777,7]
[335051336,1723792255767,-539.11,0.00023777,7]
[335051337,1723792255777,-539.11,0.00023777,7]
[335051338,1723792255787,-539.11,0.00023777,7]
[335051339,1723792255797,-1036.53,0.00023777,7]
[335051340,1723792255807,-1036.53,0.00023777,7]
[335051341,1723792255817,-1036.53,0.00023777,7]
[335051342,1723792255827,-1148.86,0.00023777,7]
[335051343,1723792255837,-1148.86,0.00023777,7]
[335051344,1723792255847,-1148.86,0.00023777,7]
[335051345,1723792255856,-1623.43,0.00023777,7]
[335051346,1723792255866,-1623.43,0.00023777,7]
[335051347,1723792255875,-1623.43,0.00023777,7]
[335051348,1723792255885,-1018.79,0.00023777,7]
[335051349,1723792255895,-1018.79,0.00023777,7]
[335051350,1723792255905,-1018.79,0.00023777,7]
[335051351,1723792255915,-500.0,0.00023777,7]
[335051352,1723792255925,-337.9,0.00023777,7]
[335051353,1723792255935,-500.0,0.00023777,7]
[335051354,1723792255944,-500.0,0.00023777,7]
[335051355,1723792255954,-561.95915073,0.00023777,7]
[335051356,1723792255966,-800.9,0.00023777,7]
[335051357,1723792255975,-800.9,0.00023777,7]
[335051358,1723792255985,-800.9,0.00023777,7]
[335051359,1723792255995,-552.99,0.00023777,7]
[335051360,1723792256005,-552.99,0.00023777,7]
[335051361,1723792256014,-552.99,0.00023777,7]
[335051362,1723792256023,-1095.34,0.00023777,7]
[335051363,1723792256033,-1095.34,0.00023777,7]
[335051364,1723792256043,-1095.34,0.00023777,7]
[335051365,1723792256052,-500.0,0.00023777,7]
[335051366,1723792256061,-500.0,0.00023777,7]
[335051367,1723792256071,-500.0,0.00023777,7]
[335051368,1723792256080,-500.0,0.00023777,7]
[335051369,1723792256090,-466.82994588,0.00023777,7]
[335051370,1723792256099,-500.0,0.00023777,7]
[335051371,1723792256109,-379.44551555,0.00023777,7]
[335051372,1723792256118,-500.0,0.00023777,7]
[335051373,1723792256128,-500.0,0.00023777,7]
[335051374,1723792256137,-500.0,0.00023777,7]
[335051375,1723792256147,-500.0,0.00023777,7]
[335051376,1723792256156,-500.0,0.00023777,7]
[335051377,1723792256166,-500.0,0.00023777,7]
[335051378,1723792256175,-500.0,0.00023777,7]
[335051379,1723792256185,-500.0,0.00023777,7]
[335051380,1723792256194,-500.0,0.00023777,7]
[335051381,1723792256204,-737.6,0.00023777,7]
[335051382,1723792256214,-737.6,0.00023777,7]
[335051383,1723792256223,-500.0,0.00023777,7]
[335051384,1723792256233,-737.6,0.00023777,7]
[335051385,1723792256248,-500.0,0.00023777,7]
[335051386,1723792256258,-500.0,0.00023777,7]
[335051387,1723792256266,-3054.47,0.00023777,7]
[335051388,1723792256276,-3054.47,0.00023777,7]
[335051389,1723792256287,-3054.47,0.00023777,7]
[335051390,1723792256297,-547.44,0.00023777,7]
[335051391,1723792256308,-547.44,0.00023777,7]
[335051392,1723792256318,-500.0,0.00023777,7]
[335051393,1723792256329,-547.44,0.00023777,7]
[335051394,1723792256339,-500.0,0.00023777,7]
[335051395,1723792256349,-547.44,0.00023777,7]
[335051396,1723792256359,-500.0,0.00023777,7]
[335051397,1723792256369,-2641.39,0.00023777,7]
[335051398,1723792256378,-2641.39,0.00023777,7]
[335051399,1723792256388,-2641.39,0.00023777,7]
[335051400,1723792256397,-500.0,0.00023777,7]
[335051401,1723792256407,-500.0,0.00023777,7]
[335051402,1723792256417,-500.0,0.00023777,7]
[335051403,1723792256426,-500.0,0.00023777,7]
[335051404,1723792256435,-2524.3,0.00023777,7]
[335051405,1723792256445,-2524.3,0.00023777,7]
[335051406,1723792256454,-2524.3,0.00023777,7]
[335051407,1723792256464,-500.0,0.00023777,7]
[335051408,1723792256473,-500.0,0.00023777,7]
[335051409,1723792256482,-500.0,0.00023777,7]
[335051410,1723792256492,-500.0,0.00023777,7]
[335051411,1723792256502,-500.0,0.00023777,7]
[335051412,1723792256512,-500.0,0.00023777,7]
[335051413,1723792256522,-500.0,0.00023777,7]
[335051414,1723792256531,-500.0,0.00023777,7]
[335051415,1723792256541,-500.0,0.00023777,7]
[335051416,1723792256550,-500.0,0.00023777,7]
[335051417,1723792256560,-500.0,0.00023777,7]
[335051418,1723792256570,-500.0,0.00023777,7]
[335051419,1723792256580,-1115.96,0.00023777,7]
[335051420,1723792256589,-1115.96,0.00023777,7]
[335051421,1723792256599,-1115.96,0.00023777,7]
[335051422,1723792256609,-500.0,0.00023777,7]
[335051423,1723792256618,-500.0,0.00023777,7]
[335051424,1723792256628,-500.0,0.00023777,7]
[335051425,1723792256638,-484.50124143,0.00023777,7]
[335051426,1723792256647,-833.93,0.00023777,7]
[335051427,1723792256657,-833.93,0.00023777,7]
[335051428,1723792256666,-833.93,0.00023777,7]
[335051429,1723792256676,-833.93,0.00023777,7]
[335051430,1723792256686,-699.63,0.00023777,2]
[335051431,1723792256695,-699.63,0.00023777,2]
[335051432,1723792256705,-699.63,0.00023777,2]
[335051433,1723792256715,-1873.51,0.00023777,7]
[335051434,1723792256725,-1873.51,0.00023777,7]
[335051435,1723792256735,-1873.51,0.00023777,7]
[335051436,1723792256744,-150.0,0.00023777,2]
[335051437,1723792256754,-1400.53,0.00023777,7]
[335051438,1723792256857,-1400.53,0.00023777,7]
[335051439,1723792256867,-1400.53,0.00023777,7]
[335051440,1723792256877,-3879.67,0.00023777,7]
[335051441,1723792256887,-3879.67,0.00023777,7]
[335051442,1723792256896,-3879.67,0.00023777,7]
[335051443,1723792256906,-1000.0,0.00023777,7]
[335051444,1723792256915,-1000.0,0.00023777,7]
[335051445,1723792256924,-1000.0,0.00023777,7]
[335051446,1723792256934,-204.70049388,0.00023777,7]
[335051447,1723792256943,-3194.93,0.00023777,7]
[335051448,1723792256952,-3194.93,0.00023777,7]
[335051449,1723792256962,-3194.93,0.00023777,7]
[335051450,1723792256971,-5847.05,0.00023777,7]
[335051451,1723792256981,-5847.05,0.00023777,7]
[335051452,1723792256991,-5847.05,0.00023777,7]
[335051453,1723792257000,-2183.48,0.00023777,7]
[335051454,1723792257010,-2183.48,0.00023777,7]
[335051455,1723792257020,-2183.48,0.00023777,7]
[335051456,1723792257029,-150.51745403,0.00023777,2]
[335051457,1723792257038,-3231.59,0.00023778,7]
[335051458,1723792257048,-3411.05,0.00023778,7]
[335051459,1723792257057,-96050.76,0.00023778,7]
[335051460,1723792257067,-28691.57,0.00023778,7]
[335051461,1723792257076,-8579.91,0.00023778,7]
[335051462,1723792257085,-30284.25,0.00023778,7]
[335051463,1723792257094,-6264.41,0.00023778,7]
[335051464,1723792257104,-4908.41,0.00023778,7]
[335051465,1723792257113,-15944.16,0.00023778,7]
[335051466,1723792257123,-14290.2,0.00023778,7]
[335051467,1723792257132,-5922.58,0.00023778,7]
[335051468,1723792257142,-9146.29,0.00023778,7]
[335051469,1723792257151,-6225.22,0.00023778,7]
[335051470,1723792257161,-1733.27,0.00023778,7]
[335051471,1723792257170,-3156.76,0.00023778,7]
[335051472,1723792257180,-2298.55,0.00023778,7]
[335051473,1723792257189,-500.0,0.00023778,7]
[335051474,1723792257198,-500.0,0.00023778,7]
[335051475,1723792257208,-1160.67,0.00023778,7]
[335051476,1723792257217,-8282.48,0.00023778,7]
[335051477,1723792257227,-3913.49,0.00023778,7]
[335051478,1723792257237,-6688.71,0.00023778,7]
[335051479,1723792257249,-4825.78,0.00023778,7]
[335051480,1723792257258,-5901.24,0.00023778,7]
[335051481,1723792257267,-4137.59,0.00023778,7]
[335051482,1723792257276,-3459.19,0.00023778,7]
[335051483,1723792257286,-4945.29,0.00023778,7]
[335051484,1723792257295,-3055.36,0.00023778,7]
[335051485,1723792257305,-7634.79,0.00023778,7]
[335051486,1723792257316,-1227.67,0.00023778,7]
[335051487,1723792257325,-8001.35,0.00023778,7]
[335051488,1723792257334,-8413.07,0.00023778,7]
[335051489,1723792257344,-21245.41,0.00023778,7]
[335051490,1723792257353,-2184.59,0.00023778,7]
[335051491,1723792257363,-7364.54,0.00023778,7]
[335051492,1723792257372,-6031.18,0.00023778,7]
[335051493,1723792257382,-500.0,0.00023778,7]
[335051494,1723792257391,-2718.2,0.00023778,7]
[335051495,1723792257400,-6621.57,0.00023778,7]
[335051496,1723792257409,-4601.56,0.00023778,7]
[335051497,1723792257419,-1169.89,0.00023778,7]
[335051498,1723792257428,-8098.6,0.00023778,7]
[335051499,1723792257437,-6939.63,0.00023778,7]
[335051500,1723792257447,-15024.61,0.00023778,7]
[335051501,1723792257456,-1819.6,0.00023778,7]
[335051502,1723792257469,-853.85,0.00023778,7]
[335051503,1723792257478,-1335.54,0.00023778,7]
[335051504,1723792257488,-978.24,0.00023778,7]
[335051505,1723792257497,-500.0,0.00023778,7]
[335051506,1723792257506,-4630.39,0.00023778,7]
[335051507,1723792257515,-2975.69,0.00023778,7]
[335051508,1723792257525,-545.65,0.00023778,7]
[335051509,1723792257535,-500.0,0.00023778,7]
[335051510,1723792257544,-12167.05,0.00023778,7]
[335051511,1723792257553,-4705.67,0.00023778,7]
[335051512,1723792257562,-6207.91,0.00023778,7]
[335051513,1723792257571,-500.0,0.00023778,7]
[335051514,1723792257581,-673.75,0.00023778,7]
[335051515,1723792257590,-3646.92,0.00023778,7]
[335051516,1723792257600,-9541.69,0.00023778,7]
[335051517,1723792257609,-500.0,0.00023778,7]
[335051518,1723792257619,-35640.17,0.00023778,7]
[335051519,1723792257628,-8553.7,0.00023778,7]
[335051520,1723792257637,-545.81,0.00023778,7]
[335051521,1723792257647,-500.0,0.00023778,7]
[335051522,1723792257656,-3105.69,0.00023778,7]
[335051523,1723792257666,-923.6,0.00023778,7]
[335051524,1723792257675,-3132.89,0.00023778,7]
[335051525,1723792257684,-6636.63,0.00023778,7]
[335051526,1723792257694,-1897.98,0.00023778,7]
[335051527,1723792257703,-500.0,0.00023778,7]
[335051528,1723792257714,-8516.75,0.00023778,7]
[335051529,1723792257722,-500.0,0.00023778,7]
[335051530,1723792257732,-500.0,0.00023778,7]
[335051531,1723792257741,-10212.73,0.00023778,7]
[335051532,1723792257750,-500.0,0.00023778,7]
[335051533,1723792257760,-1545.78,0.00023778,7]
[335051534,1723792257769,-3733.82,0.00023778,7]
[335051535,1723792257779,-500.0,0.00023778,7]
[335051536,1723792257788,-4308.98,0.00023778,7]
[335051537,1723792257798,-4993.21,0.00023778,7]
[335051538,1723792257808,-1819.02,0.00023778,7]
[335051539,1723792257820,-5073.95,0.00023778,7]
[335051540,1723792257829,-2778.23,0.00023778,7]
[335051541,1723792257838,-3792.1,0.00023778,7]
[335051542,1723792257847,-743.37,0.00023778,7]
[335051543,1723792257857,-30043.53,0.00023778,7]
[335051544,1723792257867,-500.0,0.00023778,7]
[335051545,1723792257876,-74056.9,0.00023778,7]
[335051546,1723792257885,-7946.22,0.00023778,7]
[335051547,1723792257895,-5348.87,0.00023778,7]
[335051548,1723792257904,-5615.4,0.00023778,7]
[335051549,1723792257913,-1666.42,0.00023778,7]
[335051550,1723792257923,-2975.69,0.00023778,7]
[335051551,1723792257932,-500.0,0.00023778,7]
[335051552,1723792257942,-1859.09,0.00023778,7]
[335051553,1723792257951,-2520.87,0.00023778,7]
[335051554,1723792257962,-5546.86,0.00023778,7]
[335051555,1723792257972,-500.0,0.00023778,7]
[335051556,1723792257981,-500.0,0.00023778,7]
[335051557,1723792257991,-500.0,0.00023778,7]
[335051558,1723792258001,-500.0,0.00023778,7]
[335051559,1723792258011,-500.0,0.00023778,7]
[335051560,1723792258021,-939.41,0.00023778,7]
[335051561,1723792258030,-524.13,0.00023778,7]
[335051562,1723792258039,-500.0,0.00023778,7]
[335051563,1723792258050,-531.7,0.00023778,7]
[335051564,1723792258059,-1418.67,0.00023778,7]
[335051565,1723792258068,-539.11,0.00023778,7]
[335051566,1723792258078,-1036.53,0.00023778,7]
[335051567,1723792258088,-1148.86,0.00023778,7]
[335051568,1723792258098,-1623.43,0.00023778,7]
[335051569,1723792258107,-1018.79,0.00023778,7]
[335051570,1723792258117,-800.9,0.00023778,7]
[335051571,1723792258127,-552.99,0.00023778,7]
[335051572,1723792258137,-1095.34,0.00023778,7]
[335051573,1723792258147,-500.0,0.00023778,7]
[335051574,1723792258157,-500.0,0.00023778,7]
[335051575,1723792258167,-500.0,0.00023778,7]
[335051576,1723792258176,-500.0,0.00023778,7]
[335051577,1723792258185,-737.6,0.00023778,7]
[335051578,1723792258196,-500.0,0.00023778,7]
[335051579,1723792258206,-3054.47,0.00023778,7]
[335051580,1723792258216,-547.44,0.00023778,7]
[335051581,1723792258226,-500.0,0.00023778,7]
[335051582,1723792258240,-2641.39,0.00023778,7]
[335051583,1723792258249,-392.95,0.00023778,7]
[335051584,1723792258259,-2524.3,0.00023778,7]
[335051585,1723792258269,-500.0,0.00023778,7]
[335051586,1723792258279,-500.0,0.00023778,7]
[335051587,1723792258288,-500.0,0.00023778,7]
[335051588,1723792258297,-500.0,0.00023778,7]
[335051589,1723792258307,-500.0,0.00023778,7]
[335051590,1723792258317,-500.0,0.00023778,7]
[335051591,1723792258327,-500.0,0.00023778,7]
[335051592,1723792258336,-367.14759349,0.00023778,7]
[335051593,1723792258346,-1115.96,0.00023778,7]
[335051594,1723792258355,-500.0,0.00023778,7]
[335051595,1723792258364,-500.0,0.00023778,7]
[335051596,1723792258374,-833.93,0.00023778,7]
[335051597,1723792258383,-856.03,0.00023778,7]
[335051598,1723792258392,-856.03,0.00023778,7]
[335051599,1723792258402,-699.63,0.00023778,2]
[335051600,1723792258412,-699.63,0.00023778,2]
[335051601,1723792258421,-1873.51,0.00023778,7]
[335051602,1723792258430,-1873.51,0.00023778,7]
[335051603,1723792258440,-1400.53,0.00023778,7]
[335051604,1723792258449,-1400.53,0.00023778,7]
[335051605,1723792258459,-3879.67,0.00023778,7]
[335051606,1723792258469,-3879.67,0.00023778,7]
[335051607,1723792258478,-1000.0,0.00023778,7]
[335051608,1723792258488,-1000.0,0.00023778,7]
[335051609,1723792258497,-3194.93,0.00023778,7]
[335051610,1723792258507,-3194.93,0.00023778,7]
[335051611,1723792258516,-3194.93,0.00023778,7]
[335051612,1723792258525,-3194.93,0.00023778,7]
[335051613,1723792258534,-3194.93,0.00023778,7]
[335051614,1723792258543,-3195.09663243,0.00023778,7]
[335051615,1723792258552,-5847.05,0.00023778,7]
[335051616,1723792258562,-5847.05,0.00023778,7]
[335051617,1723792258571,-5847.05,0.00023778,7]
[335051618,1723792258581,-5847.05,0.00023778,7]
[335051619,1723792258591,-5847.05,0.00023778,7]
[335051620,1723792258600,-5847.13053181,0.00023778,7]
[335051621,1723792258609,-2183.48,0.00023778,7]
[335051622,1723792258619,-2183.48,0.00023778,7]
[335051623,1723792258628,-2183.48,0.00023778,7]
[335051624,1723792258638,-2183.48,0.00023778,7]
[335051625,1723792258647,-2183.48,0.00023778,7]
[335051626,1723792258657,-2183.67755608,0.00023778,7]
[335051627,1723792258666,-4908.41,0.00023779,7]
[335051628,1723792258675,-15944.16,0.00023779,7]
[335051629,1723792258684,-5922.58,0.00023779,7]
[335051630,1723792258693,-9146.29,0.00023779,7]
[335051631,1723792258703,-1733.27,0.00023779,7]
[335051632,1723792258713,-3156.76,0.00023779,7]
[335051633,1723792258722,-500.0,0.00023779,7]
[335051634,1723792258732,-8282.48,0.00023779,7]
[335051635,1723792258742,-3913.49,0.00023779,7]
[335051636,1723792258752,-4825.78,0.00023779,7]
[335051637,1723792258761,-5901.24,0.00023779,7]
[335051638,1723792258771,-4945.29,0.00023779,7]
[335051639,1723792258781,-3055.36,0.00023779,7]
[335051640,1723792258791,-1227.67,0.00023779,7]
[335051641,1723792258801,-8001.35,0.00023779,7]
[335051642,1723792258811,-21245.41,0.00023779,7]
[335051643,1723792258820,-7364.54,0.00023779,7]
[335051644,1723792258830,-6031.18,0.00023779,7]
[335051645,1723792258839,-500.0,0.00023779,7]
[335051646,1723792258848,-6621.57,0.00023779,7]
[335051647,1723792258857,-1169.89,0.00023779,7]
[335051648,1723792258866,-8098.6,0.00023779,7]
[335051649,1723792258875,-6939.63,0.00023779,7]
[335051650,1723792258885,-1819.6,0.00023779,7]
[335051651,1723792258895,-853.85,0.00023779,7]
[335051652,1723792258910,-978.24,0.00023779,7]
[335051653,1723792258924,-500.0,0.00023779,7]
[335051654,1723792258935,-2975.69,0.00023779,7]
[335051655,1723792258945,-545.65,0.00023779,7]
[335051656,1723792258956,-500.0,0.00023779,7]
[335051657,1723792258966,-4705.67,0.00023779,7]
[335051658,1723792258975,-500.0,0.00023779,7]
[335051659,1723792258984,-673.75,0.00023779,7]
[335051660,1723792258994,-9541.69,0.00023779,7]
[335051661,1723792259004,-545.81,0.00023779,7]
[335051662,1723792259013,-3646.92,0.00023779,7]
[335051663,1723792259022,-500.0,0.00023779,7]
[335051664,1723792259031,-923.6,0.00023779,7]
[335051665,1723792259041,-3132.89,0.00023779,7]
[335051666,1723792259051,-1897.98,0.00023779,7]
[335051667,1723792259062,-500.0,0.00023779,7]
[335051668,1723792259071,-8516.75,0.00023779,7]
[335051669,1723792259081,-500.0,0.00023779,7]
[335051670,1723792259092,-500.0,0.00023779,7]
[335051671,1723792259102,-500.0,0.00023779,7]
[335051672,1723792259112,-1545.78,0.00023779,7]
[335051673,1723792259121,-3733.82,0.00023779,7]
[335051674,1723792259130,-500.0,0.00023779,7]
[335051675,1723792259140,-4308.98,0.00023779,7]
[335051676,1723792259149,-4993.21,0.00023779,7]
[335051677,1723792259158,-4993.21,0.00023779,7]
[335051678,1723792259168,-1819.02,0.00023779,7]
[335051679,1723792259177,-2778.23,0.00023779,7]
[335051680,1723792259187,-743.37,0.00023779,7]
[335051681,1723792259196,-74056.9,0.00023779,7]
[335051682,1723792259206,-7946.22,0.00023779,7]
[335051683,1723792259216,-7946.22,0.00023779,7]
[335051684,1723792259225,-5348.87,0.00023779,7]
[335051685,1723792259237,-5348.87,0.00023779,7]
[335051686,1723792259247,-5615.4,0.00023779,7]
[335051687,1723792259256,-5615.4,0.00023779,7]
[335051688,1723792259265,-1666.42,0.00023779,7]
[335051689,1723792259274,-2975.69,0.00023779,7]
[335051690,1723792259283,-2975.69,0.00023779,7]
[335051691,1723792259292,-500.0,0.00023779,7]
[335051692,1723792259301,-1859.09,0.00023779,7]
[335051693,1723792259310,-2520.87,0.00023779,7]
[335051694,1723792259321,-5546.86,0.00023779,7]
[335051695,1723792259331,-500.0,0.00023779,7]
[335051696,1723792259340,-500.0,0.00023779,7]
[335051697,1723792259349,-500.0,0.00023779,7]
[335051698,1723792259358,-500.0,0.00023779,7]
[335051699,1723792259367,-500.0,0.00023779,7]
[335051700,1723792259376,-939.41,0.00023779,7]
[335051701,1723792259385,-939.41,0.00023779,7]
[335051702,1723792259393,-524.13,0.00023779,7]
[335051703,1723792259402,-524.13,0.00023779,7]
[335051704,1723792259412,-500.0,0.00023779,7]
[335051705,1723792259421,-500.0,0.00023779,7]
[335051706,1723792259430,-531.7,0.00023779,7]
[335051707,1723792259439,-531.7,0.00023779,7]
[335051708,1723792259448,-1418.67,0.00023779,7]
[335051709,1723792259457,-1418.67,0.00023779,7]
[335051710,1723792259467,-539.11,0.00023779,7]
[335051711,1723792259476,-539.11,0.00023779,7]
[335051712,1723792259486,-1036.53,0.00023779,7]
[335051713,1723792259495,-1036.53,0.00023779,7]
[335051714,1723792259505,-1148.86,0.00023779,7]
[335051715,1723792259514,-1148.86,0.00023779,7]
[335051716,1723792259523,-1623.43,0.00023779,7]
[335051717,1723792259532,-1623.43,0.00023779,7]
[335051718,1723792259541,-1018.79,0.00023779,7]
[335051719,1723792259550,-1018.79,0.00023779,7]
[335051720,1723792259560,-800.9,0.00023779,7]
[335051721,1723792259569,-800.9,0.00023779,7]